bitfinex/quotes_BTCUSD_20240719
["timestamp","ask_amount","ask_price","bid_price","bid_amount"]
[1721425145082,0.134016,67156.0,67153.0,0.07792145]
[1721425145283,0.002794,67155.0,67153.0,0.07792145]
[1721425145468,0.00178804,67155.0,67153.0,0.07792145]
[1721425146525,0.00878804,67155.0,67153.0,0.07892145]
[1721425147584,0.01078804,67155.0,67153.0,0.07892145]
[1721425147988,0.009,67155.0,67153.0,0.21294245]
[1721425148196,0.00178804,67154.0,67153.0,0.21294245]
[1721425148956,0.00178804,67154.0,67153.0,1.56478103]
[1721425149158,0.009,67155.0,67154.0,0.54686596]
[1721425149159,0.002,67155.0,67154.0,0.54686596]
[1721425149359,0.002,67155.0,67154.0,1.23632174]
[1721425149557,0.002,67155.0,67154.0,1.39067131]
[1721425149762,0.00178804,67168.0,67167.0,0.133994]
[1721425149940,0.00859397,67170.0,67168.0,0.133991]
[1721425150319,0.00859397,67170.0,67169.0,0.75295]
[1721425150524,0.00859397,67170.0,67169.0,0.81375]
[1721425150818,0.133973,67178.0,67172.0,0.133982]
[1721425151278,0.133968,67180.0,67174.0,0.13398]
[1721425152414,0.133968,67180.0,67174.0,0.16992821]
[1721425152623,0.133966,67181.0,67174.0,0.13398]
[1721425152833,0.133966,67181.0,67174.0,0.40194]
[1721425153036,0.00384,67175.0,67174.0,0.40194]
[1721425154578,0.00384,67175.0,67174.0,0.40594]
[1721425155478,0.00084,67175.0,67174.0,0.40194]
[1721425155678,0.00284,67175.0,67174.0,0.40194]
[1721425156341,0.00084,67175.0,67174.0,0.40194]
[1721425157550,0.00084,67175.0,67174.0,0.40694]
[1721425157760,0.00084,67175.0,67174.0,0.40194]
[1721425158101,0.00084,67175.0,67174.0,0.40794]
[1721425159031,0.00084,67175.0,67174.0,0.89108174]
[1721425159236,0.00084,67175.0,67174.0,1.28324831]
[1721425159478,0.00084,67175.0,67174.0,1.36624831]
[1721425161246,0.00084,67175.0,67174.0,1.62820831]
[1721425161453,0.00084,67175.0,67174.0,1.73620831]
[1721425161663,0.00084,67175.0,67174.0,1.75020831]
[1721425162066,0.00084,67175.0,67174.0,1.74220831]
[1721425162265,0.00184,67175.0,67174.0,1.75620831]
[1721425162981,0.00184,67175.0,67174.0,1.74220831]
[1721425163177,0.00184,67175.0,67174.0,1.75620831]
[1721425163378,0.00184,67175.0,67174.0,1.80620831]
[1721425163584,0.00184,67175.0,67174.0,1.79220831]
[1721425163824,0.00184,67175.0,67174.0,1.80620831]
[1721425164032,0.00184,67175.0,67174.0,1.75620831]
[1721425164231,0.00184,67175.0,67174.0,1.80620831]
[1721425164432,0.00184,67175.0,67174.0,1.75620831]
[1721425165912,0.00184,67175.0,67174.0,1.80620831]
[1721425166943,0.00184,67175.0,67174.0,1.75620831]
[1721425167483,0.00184,67175.0,67174.0,2.24136831]
[1721425167640,0.00184,67175.0,67174.0,2.29136831]
[1721425168249,0.00184,67175.0,67174.0,2.24136831]
[1721425169663,0.00184,67175.0,67174.0,2.29136831]
[1721425170587,0.00184,67175.0,67174.0,2.24136831]
[1721425170811,0.00184,67175.0,67174.0,2.29136831]
[1721425171501,0.00184,67175.0,67174.0,2.24136831]
[1721425172161,0.00184,67175.0,67174.0,2.11096831]
[1721425172403,0.00184,67175.0,67174.0,2.16096831]
[1721425176609,0.00184,67175.0,67174.0,2.28452777]
[1721425178229,0.00184,67175.0,67174.0,2.29290777]
[1721425178693,0.00184,67175.0,67174.0,2.16934831]
[1721425178923,0.00173032,67175.0,67174.0,2.29290739]
[1721425182002,0.00173032,67175.0,67174.0,2.16934831]
[1721425182248,0.00173032,67175.0,67174.0,2.29290739]
[1721425182848,0.00173032,67175.0,67174.0,2.79290739]
[1721425185316,0.00173032,67175.0,67174.0,2.66934831]
[1721425185523,0.00173032,67175.0,67174.0,2.79290777]
[1721425186333,0.00173032,67175.0,67174.0,1.7639412]
[1721425186542,0.00173032,67175.0,67174.0,1.57120174]
[1721425186751,0.00173032,67175.0,67174.0,2.28156646]
[1721425187398,0.00173032,67175.0,67174.0,1.78156646]
[1721425187607,0.00173032,67175.0,67174.0,2.28156646]
[1721425187821,0.00173032,67175.0,67174.0,2.43591603]
[1721425188633,0.00173032,67175.0,67174.0,2.31235131]
[1721425188831,0.00173032,67175.0,67174.0,2.43591785]
[1721425189393,0.00173032,67175.0,67174.0,2.28156828]
[1721425191919,0.00173032,67175.0,67174.0,2.28156846]
[1721425193547,0.00173032,67175.0,67174.0,2.19856846]
[1721425194177,0.00173032,67175.0,67174.0,1.69856846]
[1721425195203,0.00173032,67175.0,67174.0,1.57500174]
[1721425195408,0.00173032,67175.0,67174.0,1.69856868]
[1721425195606,0.00173032,67175.0,67174.0,1.85291825]
[1721425195820,0.00173032,67175.0,67174.0,1.69856868]
[1721425197993,0.06383032,67175.0,67174.0,1.69856868]
[1721425198417,0.06383032,67175.0,67174.0,1.57500174]
[1721425198617,0.06383032,67175.0,67174.0,1.69857082]
[1721425199403,0.06383032,67175.0,67174.0,1.43061082]
[1721425200075,0.06383032,67175.0,67174.0,1.33061082]
[1721425200291,0.06383032,67175.0,67174.0,0.15156908]
[1721425200292,0.14143032,67175.0,67174.0,0.15156908]
[1721425200516,0.14143032,67175.0,67174.0,0.85228174]
[1721425200940,0.14143032,67175.0,67174.0,0.028]
[1721425201144,0.14143032,67175.0,67174.0,0.014]
[1721425201551,0.14143032,67175.0,67174.0,0.028]
[1721425201724,0.14143032,67175.0,67174.0,0.014]
[1721425202234,0.14043032,67175.0,67174.0,0.001]
[1721425202431,0.0621,67174.0,67172.0,0.133982]
[1721425202768,0.00178804,67173.0,67172.0,0.133982]
[1721425203749,0.14528804,67173.0,67172.0,0.133982]
[1721425203950,0.1435,67173.0,67172.0,0.133982]
[1721425204651,0.1435,67173.0,67172.0,0.140982]
[1721425205763,0.1435,67173.0,67172.0,0.141982]
[1721425207625,0.1435,67173.0,67172.0,0.40995]
[1721425212963,0.1435,67173.0,67172.0,0.008]
[1721425234953,0.0608,67173.0,67172.0,0.008]
[1721425237884,0.0608,67173.0,67172.0,0.008924]
[1721425238572,0.10558405,67173.0,67172.0,0.008924]
[1721425238802,0.04478405,67173.0,67172.0,0.008924]
[1721425239031,0.04478405,67174.0,67172.0,0.008924]
[1721425239278,0.04657209,67173.0,67172.0,0.008924]
[1721425239522,0.04478405,67173.0,67172.0,0.008924]
[1721425240021,0.04478405,67173.0,67172.0,0.007924]
[1721425240251,0.04434588,67173.0,67172.0,0.007924]
[1721425240479,0.04434588,67174.0,67172.0,0.007924]
[1721425240716,0.04613392,67173.0,67172.0,0.007924]
[1721425240937,0.04434588,67173.0,67172.0,0.000924]
[1721425241172,0.04434588,67174.0,67172.0,0.135908]
[1721425241402,0.04434588,67173.0,67172.0,0.141908]
[1721425241631,0.04439257,67174.0,67173.0,0.133982]
[1721425241838,0.09936369,67174.0,67173.0,0.133982]
[1721425242802,0.09936369,67174.0,67173.0,0.006]
[1721425243434,0.09935016,67174.0,67173.0,0.006]
[1721425245397,0.14399047,67174.0,67173.0,0.006]
[1721425246777,0.05497112,67174.0,67173.0,0.006]
[1721425246998,0.14388461,67174.0,67173.0,0.006]
[1721425248330,0.09920187,67174.0,67173.0,0.006]
[1721425250109,0.09780942,67174.0,67173.0,0.006]
[1721425254866,0.09959746,67174.0,67173.0,0.006]
[1721425255245,0.09780942,67174.0,67173.0,0.006]
[1721425255625,0.09959746,67174.0,67173.0,0.006]
[1721425256000,0.32037746,67174.0,67173.0,0.006]
[1721425256207,0.31858942,67174.0,67173.0,0.006]
[1721425256409,0.23178942,67174.0,67173.0,0.006]
[1721425256777,0.23339976,67174.0,67173.0,0.006]
[1721425257180,0.18895112,67174.0,67173.0,0.006]
[1721425257477,0.30028422,67174.0,67173.0,0.006]
[1721425257712,0.09926138,67174.0,67173.0,0.006]
[1721425258494,0.16630422,67174.0,67173.0,0.006]
[1721425259403,0.16641655,67174.0,67173.0,0.006]
[1721425259828,0.05497112,67174.0,67173.0,0.006]
[1721425260129,0.31532074,67174.0,67173.0,0.006]
[1721425260600,0.73701371,67174.0,67173.0,0.006]
[1721425260726,1.38467876,67174.0,67173.0,0.006]
[1721425261068,1.27293371,67174.0,67173.0,0.006]
[1721425261511,1.18613371,67174.0,67173.0,0.006]
[1721425261648,0.66991,67173.0,67172.0,0.000924]
[1721425262008,0.85608371,67173.0,67172.0,0.000924]
[1721425262335,0.96818083,67173.0,67172.0,0.000924]
[1721425262535,0.96818071,67173.0,67172.0,0.000924]
[1721425262964,1.11708071,67173.0,67172.0,0.000924]
[1721425264004,1.11708071,67173.0,67172.0,0.001924]
[1721425264005,1.12308071,67173.0,67172.0,0.001924]
[1721425265253,1.57379352,67173.0,67172.0,0.001924]
[1721425265443,1.59679352,67173.0,67172.0,0.001924]
[1721425265803,1.45590833,67173.0,67172.0,0.001924]
[1721425266348,1.38989033,67173.0,67172.0,0.001924]
[1721425266791,1.38989033,67173.0,67157.0,0.00100596]
[1721425266792,0.73626,67158.0,67157.0,0.00100596]
[1721425266992,0.73626,67158.0,67156.0,0.04968221]
[1721425266993,0.402042,67157.0,67156.0,0.04968221]
[1721425267206,0.134068,67130.0,67126.0,0.10417547]
[1721425267415,0.489022,67127.0,67126.0,0.059656]
[1721425267616,0.81698479,67127.0,67126.0,0.059656]
[1721425268169,0.134085,67122.0,67114.0,0.134099]
[1721425268400,0.0868,67120.0,67114.0,0.134099]
[1721425269105,0.220888,67120.0,67113.0,0.134101]
[1721425269303,0.220888,67120.0,67112.0,0.000924]
[1721425269749,0.134088,67120.0,67112.0,0.000924]
[1721425269949,0.489064,67120.0,67112.0,0.135027]
[1721425270762,0.495064,67120.0,67119.0,0.001924]
[1721425272044,0.408264,67120.0,67119.0,0.001924]
[1721425272256,0.639064,67120.0,67119.0,0.001924]
[1721425272446,0.90724,67120.0,67119.0,0.001924]
[1721425273016,0.76324,67120.0,67119.0,0.001924]
[1721425274843,0.67644,67120.0,67119.0,0.001924]
[1721425275211,0.76324,67120.0,67119.0,0.001924]
[1721425277243,0.67644,67120.0,67119.0,0.001924]
[1721425277420,0.495064,67120.0,67119.0,0.001924]
[1721425277623,0.408264,67120.0,67119.0,0.0155263]
[1721425277822,0.50388178,67120.0,67119.0,0.0155263]
[1721425278350,0.50388178,67120.0,67119.0,0.001924]
[1721425285144,0.20388178,67120.0,67119.0,0.001924]
[1721425286145,0.47205778,67120.0,67119.0,0.001924]
[1721425289440,0.47205778,67120.0,67119.0,0.000924]
[1721425289441,0.46605778,67120.0,67119.0,0.000924]
[1721425289894,0.47205778,67120.0,67119.0,0.001924]
[1721425290298,0.46605778,67120.0,67119.0,0.000924]
[1721425290656,0.46605778,67120.0,67119.0,0.001924]
[1721425290657,0.47205778,67120.0,67119.0,0.001924]
[1721425293303,0.47205778,67120.0,67119.0,0.00549327]
[1721425293569,0.47205778,67120.0,67119.0,0.001924]
[1721425293769,0.47205778,67120.0,67119.0,0.00549327]
[1721425293925,0.47205778,67120.0,67119.0,0.001924]
[1721425294563,0.47205778,67120.0,67119.0,0.00549327]
[1721425294789,0.47205778,67120.0,67119.0,0.001924]
[1721425295062,0.47205778,67120.0,67119.0,0.00549327]
[1721425296561,0.53595848,67120.0,67119.0,0.00549327]
[1721425297023,0.53595848,67120.0,67119.0,0.001924]
[1721425297990,0.53605092,67120.0,67119.0,0.001924]
[1721425300326,0.53605092,67120.0,67119.0,0.00549327]
[1721425300571,0.53605092,67120.0,67119.0,0.001924]
[1721425301286,0.53600691,67120.0,67119.0,0.001924]
[1721425301756,0.53684691,67120.0,67119.0,0.001924]
[1721425302462,0.59204844,67120.0,67119.0,0.001924]
[1721425304386,0.52809931,67120.0,67119.0,0.001924]
[1721425304583,0.59184597,67120.0,67119.0,0.001924]
[1721425307032,0.52809931,67120.0,67119.0,0.001924]
[1721425307229,0.59178244,67120.0,67119.0,0.001924]
[1721425307368,0.52809931,67120.0,67119.0,0.001924]
[1721425307960,0.59178603,67120.0,67119.0,0.001924]
[1721425308159,0.85996203,67120.0,67119.0,0.001924]
[1721425308367,0.79627531,67120.0,67119.0,0.001924]
[1721425308572,0.85996203,67120.0,67119.0,0.001924]
[1721425308980,0.59178603,67120.0,67119.0,0.001924]
[1721425309184,0.85996203,67120.0,67119.0,0.001924]
[1721425310664,0.59178603,67120.0,67119.0,0.001924]
[1721425311240,0.85996203,67120.0,67119.0,0.001924]
[1721425311568,0.79627531,67120.0,67119.0,0.001924]
[1721425311771,0.85989451,67120.0,67119.0,0.001924]
[1721425316803,1.04687204,67120.0,67119.0,0.001924]
[1721425317053,1.44785225,67120.0,67119.0,0.001924]
[1721425317500,1.65513807,67120.0,67119.0,0.001924]
[1721425317701,1.56833807,67120.0,67119.0,0.001924]
[1721425318106,1.45689424,67120.0,67119.0,0.001924]
[1721425318352,1.29743305,67120.0,67119.0,0.001924]
[1721425318529,1.45716398,67120.0,67119.0,0.001924]
[1721425318731,1.45716398,67120.0,67112.0,0.000924]
[1721425318732,1.081114,67113.0,67112.0,0.000924]
[1721425318906,1.46600993,67113.0,67112.0,0.000924]
[1721425319124,1.48895154,67113.0,67112.0,0.000924]
[1721425319324,1.47347899,67113.0,67112.0,0.000924]
[1721425319711,1.52347899,67113.0,67112.0,0.000924]
[1721425319909,1.61027899,67113.0,67112.0,0.000924]
[1721425320976,1.61104057,67113.0,67112.0,0.007924]
[1721425321179,1.74515544,67113.0,67112.0,0.007924]
[1721425321586,1.87924457,67113.0,67112.0,0.007924]
[1721425321822,1.131128,67112.0,67111.0,0.002]
[1721425322033,1.56660033,67112.0,67111.0,0.002]
[1721425322225,1.56660033,67112.0,67106.0,0.009207]
[1721425322226,0.988798,67107.0,67106.0,0.009207]
[1721425322443,1.62432457,67107.0,67106.0,0.009207]
[1721425322582,1.52769179,67107.0,67106.0,0.009207]
[1721425322788,0.938826,67105.0,67096.0,0.009207]
[1721425323011,1.33531979,67105.0,67096.0,0.009207]
[1721425323213,1.020138,67097.0,67096.0,0.009207]
[1721425323440,1.22605005,67097.0,67096.0,0.009207]
[1721425323672,1.33188509,67097.0,67096.0,0.009207]
[1721425323849,1.22333953,67097.0,67096.0,0.009207]
[1721425324018,1.35506469,67097.0,67096.0,0.009207]
[1721425324219,1.69598927,67097.0,67096.0,0.009207]
[1721425324425,1.97303108,67097.0,67096.0,0.009207]
[1721425324748,1.62349166,67097.0,67096.0,0.009207]
[1721425325114,1.69441031,67097.0,67096.0,0.009207]
[1721425325314,1.672084,67097.0,67096.0,0.009207]
[1721425326534,1.57229013,67097.0,67096.0,0.009207]
[1721425326739,1.43549013,67097.0,67096.0,0.009207]
[1721425327050,1.45751974,67097.0,67096.0,0.009207]
[1721425327256,1.52244056,67097.0,67096.0,0.009207]
[1721425329325,1.38004056,67097.0,67096.0,0.009207]
[1721425330079,1.22565882,67097.0,67096.0,0.009207]
[1721425330288,1.20265882,67097.0,67096.0,0.009207]
[1721425330492,1.20260536,67097.0,67096.0,0.009207]
[1721425331500,1.20248005,67097.0,67096.0,0.009207]
[1721425333770,1.21108531,67097.0,67096.0,0.009207]
[1721425334814,1.14642863,67097.0,67096.0,0.009207]
[1721425334989,1.21115998,67097.0,67096.0,0.009207]
[1721425336226,0.87816063,67097.0,67096.0,0.009207]
[1721425336835,0.87816063,67097.0,67096.0,0.085107]
[1721425339523,0.87816063,67097.0,67096.0,0.148207]
[1721425341231,0.94196738,67097.0,67096.0,0.148207]
[1721425341799,0.84196738,67097.0,67096.0,0.148207]
[1721425342006,0.77816063,67097.0,67096.0,0.148207]
[1721425342218,0.69136063,67097.0,67096.0,0.148207]
[1721425342430,0.10749063,67097.0,67096.0,0.148207]
[1721425342645,0.02069063,67097.0,67096.0,0.282343]
[1721425342856,0.02069063,67097.0,67096.0,0.56116057]
[1721425344517,0.01269063,67097.0,67096.0,0.82943257]
[1721425344718,0.01269063,67097.0,67096.0,1.09378547]
[1721425344919,0.00969063,67097.0,67096.0,1.09378547]
[1721425345117,0.00969063,67097.0,67096.0,1.09778547]
[1721425345358,0.00969063,67097.0,67096.0,0.98781431]
[1721425345564,0.00969063,67097.0,67096.0,0.98381431]
[1721425345771,0.001,67097.0,67096.0,1.26008631]
[1721425345996,0.002,67097.0,67096.0,1.26008631]
[1721425346225,0.002,67097.0,67096.0,1.38629494]
[1721425347161,0.001,67097.0,67096.0,1.37829494]
[1721425347681,0.001,67097.0,67096.0,1.38829494]
[1721425347905,0.003634,67113.0,67111.0,0.276105]
[1721425348150,0.00084,67113.0,67112.0,0.134104]
[1721425348381,0.00084,67113.0,67112.0,0.00668938]
[1721425348885,0.00084,67113.0,67112.0,0.08308938]
[1721425349559,0.00084,67113.0,67112.0,0.21719338]
[1721425349792,0.00384,67113.0,67112.0,0.21719338]
[1721425350049,0.00384,67113.0,67112.0,0.48540138]
[1721425350996,0.00384,67113.0,67112.0,0.55100138]
[1721425351497,0.01267774,67113.0,67112.0,0.36471522]
[1721425351721,0.00384,67113.0,67112.0,0.36471522]
[1721425351955,0.00084,67113.0,67112.0,0.63092322]
[1721425352197,0.00084,67113.0,67112.0,0.63392322]
[1721425352448,0.00284,67113.0,67112.0,0.63392322]
[1721425352678,0.00284,67113.0,67112.0,0.55200138]
[1721425352912,0.00084,67113.0,67112.0,0.55200138]
[1721425353150,0.00084,67113.0,67112.0,0.28479338]
[1721425354122,0.00084,67113.0,67112.0,0.28179338]
[1721425354565,0.00084,67113.0,67112.0,0.55600138]
[1721425354788,0.00084,67113.0,67112.0,0.54900138]
[1721425355020,0.00084,67113.0,67112.0,0.55600138]
[1721425355495,0.00084,67113.0,67112.0,0.55500138]
[1721425355728,0.00084,67113.0,67112.0,0.55600138]
[1721425356153,0.00084,67113.0,67112.0,0.55500138]
[1721425356646,0.00084,67113.0,67112.0,0.55600138]
[1721425357139,0.00084,67113.0,67112.0,0.55000138]
[1721425357394,0.00084,67113.0,67112.0,0.55600138]
[1721425357634,0.00084,67113.0,67112.0,0.55963633]
[1721425357834,0.00084,67113.0,67112.0,0.56563633]
[1721425362007,0.00084,67113.0,67112.0,0.64902166]
[1721425363387,0.00942409,67113.0,67112.0,0.56563633]
[1721425376405,0.07178967,67113.0,67112.0,0.56563633]
[1721425376607,0.07178968,67113.0,67112.0,0.56563633]
[1721425379093,0.48968944,67113.0,67112.0,0.02332433]
[1721425379285,1.02609744,67113.0,67112.0,0.02332433]
[1721425379504,1.02609744,67113.0,67112.0,0.013]
[1721425379706,0.96373185,67113.0,67112.0,0.013]
[1721425379925,1.02666663,67113.0,67112.0,0.013]
[1721425380529,1.02666663,67113.0,67112.0,0.012]
[1721425380530,0.88486663,67113.0,67112.0,0.012]
[1721425380791,0.88486663,67113.0,67112.0,0.0157]
[1721425381003,0.89686663,67113.0,67112.0,0.0157]
[1721425381202,0.89686663,67113.0,67109.0,0.0794]
[1721425381203,0.134107,67111.0,67109.0,0.0794]
[1721425381400,0.06293478,67110.0,67109.0,0.0794]
[1721425382165,0.06253442,67110.0,67109.0,0.0794]
[1721425382990,0.06253442,67110.0,67109.0,0.08610271]
[1721425383734,0.06253442,67110.0,67109.0,0.08810271]
[1721425384062,0.06253442,67110.0,67109.0,0.00870271]
[1721425384237,0.06553442,67110.0,67109.0,0.00870271]
[1721425384679,0.19964242,67110.0,67109.0,0.00870271]
[1721425385475,0.19952675,67110.0,67109.0,0.00870271]
[1721425386328,0.19952675,67110.0,67109.0,0.02307708]
[1721425386793,0.19952675,67110.0,67109.0,0.00870271]
[1721425386794,1.23967475,67110.0,67109.0,0.00870271]
[1721425386996,1.31790498,67110.0,67109.0,0.00870271]
[1721425387208,1.31790498,67110.0,67109.0,0.002]
[1721425387209,1.69763661,67110.0,67109.0,0.002]
[1721425387416,1.58612098,67110.0,67109.0,0.002]
[1721425387846,1.69772427,67110.0,67109.0,0.002]
[1721425388301,0.938826,67105.0,67104.0,0.000924]
[1721425388504,1.21024455,67105.0,67104.0,0.000924]
[1721425388722,1.08085623,67105.0,67104.0,0.000924]
[1721425388936,1.21050078,67105.0,67104.0,0.000924]
[1721425389166,1.14353122,67105.0,67104.0,0.000924]
[1721425390388,1.18816322,67105.0,67104.0,0.000924]
[1721425390802,1.18816322,67105.0,67104.0,0.002924]
[1721425391731,1.19016322,67105.0,67104.0,0.002924]
[1721425391951,1.10336322,67105.0,67104.0,0.002924]
[1721425392157,1.00345308,67105.0,67104.0,0.002924]
[1721425392951,1.09025308,67105.0,67104.0,0.002924]
[1721425393784,1.23215308,67105.0,67104.0,0.002924]
[1721425394426,1.15385308,67105.0,67104.0,0.002924]
[1721425394831,1.091226,67105.0,67104.0,0.002924]
[1721425395034,1.15381646,67105.0,67104.0,0.002924]
[1721425395450,1.15381663,67105.0,67104.0,0.002924]
[1721425396518,1.09021663,67105.0,67104.0,0.002924]
[1721425398161,1.08967382,67105.0,67104.0,0.002924]
[1721425398575,1.03650464,67105.0,67104.0,0.002924]
[1721425398779,1.09838932,67105.0,67104.0,0.002924]
[1721425401858,1.03650464,67105.0,67104.0,0.002924]
[1721425402097,1.09819699,67105.0,67104.0,0.002924]
[1721425402501,1.01139699,67105.0,67104.0,0.002924]
[1721425402701,1.09819699,67105.0,67104.0,0.002924]
[1721425402901,0.134132,67099.0,67096.0,0.006631]
[1721425403105,0.220932,67099.0,67096.0,0.006631]
[1721425403805,0.27911464,67105.0,67096.0,0.006631]
[1721425403806,0.09567864,67105.0,67104.0,0.1377]
[1721425404040,0.0868,67105.0,67104.0,0.1377]
[1721425404242,0.0868,67105.0,67104.0,0.14141003]
[1721425405148,0.0085603,67109.0,67108.0,0.134112]
[1721425405341,0.0868,67109.0,67108.0,0.134112]
[1721425405543,0.0868,67109.0,67108.0,0.13778449]
[1721425406204,0.14727581,67109.0,67108.0,0.13778449]
[1721425406407,0.0868,67109.0,67108.0,0.13778449]
[1721425406607,0.0938,67109.0,67108.0,0.13778449]
[1721425406794,0.15429321,67109.0,67108.0,0.13778449]
[1721425406985,0.14729321,67109.0,67108.0,0.13778449]
[1721425407336,0.15129321,67109.0,67108.0,0.13778449]
[1721425407534,0.1512923,67109.0,67108.0,0.13778449]
[1721425407733,0.1512923,67109.0,67108.0,0.13878449]
[1721425408107,0.1512923,67109.0,67108.0,0.13778449]
[1721425408308,0.15126421,67109.0,67108.0,0.00367249]
[1721425408512,0.15126425,67109.0,67108.0,0.00567249]
[1721425408730,0.15126401,67109.0,67108.0,0.00567249]
[1721425409372,0.0868,67109.0,67108.0,0.00567249]
[1721425409751,0.0888,67109.0,67108.0,0.00567249]
[1721425409927,0.0888,67109.0,67108.0,0.11062656]
[1721425410126,0.0888,67109.0,67108.0,0.18862656]
[1721425411360,1.22722459,67109.0,67108.0,0.00567249]
[1721425411566,0.402402,67097.0,67096.0,0.006631]
[1721425411931,0.81765134,67097.0,67096.0,0.006631]
[1721425412976,0.81865134,67097.0,67096.0,0.007631]
[1721425413175,0.81965134,67097.0,67096.0,0.021631]
[1721425413710,0.81865134,67097.0,67096.0,0.020631]
[1721425414057,0.81965134,67097.0,67096.0,0.021631]
[1721425415012,0.75847,67097.0,67096.0,0.007631]
[1721425415220,0.8198386,67097.0,67096.0,0.018631]
[1721425418272,0.75947,67097.0,67096.0,0.018631]
[1721425418456,0.73317325,67097.0,67096.0,0.018631]
[1721425419972,0.81997325,67097.0,67096.0,0.018631]
[1721425421740,1.2346945,67097.0,67096.0,0.018631]
[1721425422661,1.09684299,67097.0,67096.0,0.018631]
[1721425424289,0.82857499,67097.0,67096.0,0.018631]
[1721425424534,0.74177499,67097.0,67096.0,0.160331]
[1721425424736,0.74162413,67097.0,67096.0,0.160331]
[1721425427769,0.20508813,67097.0,67096.0,0.160331]
[1721425427991,0.2067869,67097.0,67096.0,0.1765641]
[1721425428221,0.20678664,67097.0,67096.0,0.1765641]
[1721425429412,0.14498249,67097.0,67096.0,0.1765641]
[1721425430656,0.01084849,67097.0,67096.0,0.160331]
[1721425431245,0.01084849,67097.0,67096.0,0.294467]
[1721425431462,0.01084849,67097.0,67096.0,0.562739]
[1721425431669,0.01084849,67097.0,67096.0,0.831011]
[1721425431670,0.002,67097.0,67096.0,0.831011]
[1721425431939,0.002,67097.0,67096.0,0.9411405]
[1721425432373,0.002,67097.0,67096.0,0.6728685]
[1721425432708,0.002,67097.0,67096.0,0.9411405]
[1721425433351,0.002,67097.0,67096.0,1.09052224]
[1721425434170,0.002,67097.0,67096.0,0.155331]
[1721425435545,0.002,67097.0,67096.0,0.289467]
[1721425435673,0.002,67097.0,67096.0,0.147767]
[1721425435885,0.002,67097.0,67096.0,0.013631]
[1721425436293,0.002,67097.0,67096.0,0.147767]
[1721425436704,0.002,67097.0,67096.0,0.013631]
[1721425436705,0.73260401,67097.0,67096.0,0.013631]
[1721425439872,0.79470401,67097.0,67096.0,0.013631]
[1721425440270,0.73260401,67097.0,67096.0,0.013631]
[1721425440477,0.19606801,67097.0,67096.0,0.013631]
[1721425440673,0.46461872,67097.0,67096.0,0.013631]
[1721425440881,0.46461856,67097.0,67096.0,0.013631]
[1721425441087,0.480002,67097.0,67096.0,0.013631]
[1721425441467,0.53978835,67097.0,67096.0,0.013631]
[1721425442382,0.73245635,67097.0,67096.0,0.013631]
[1721425442610,0.80805635,67097.0,67096.0,0.013631]
[1721425443253,0.002,67097.0,67096.0,0.013631]
[1721425444074,0.06101884,67097.0,67096.0,0.0430082]
[1721425444276,0.06101884,67097.0,67096.0,0.096031]
[1721425444425,0.06101884,67097.0,67090.0,0.23960759]
[1721425444628,0.05901884,67096.0,67091.0,0.268291]
[1721425444856,0.05901884,67096.0,67093.0,0.134141]
[1721425445044,0.05901884,67096.0,67092.0,0.19644128]
[1721425445449,0.05901884,67096.0,67092.0,0.19144128]
[1721425445704,0.05901884,67096.0,67093.0,0.09595888]
[1721425445903,0.06001884,67096.0,67093.0,0.09595888]
[1721425446173,0.05901884,67095.0,67093.0,0.09595888]
[1721425446378,0.220932,67098.0,67092.0,0.20344128]
[1721425446592,0.001,67096.0,67092.0,0.20344128]
[1721425446813,0.05916933,67095.0,67092.0,0.20344128]
[1721425447359,0.06016933,67095.0,67092.0,0.20344128]
[1721425447559,0.00054831,67095.0,67093.0,0.09715888]
[1721425447765,0.00054831,67095.0,67092.0,0.20344128]
[1721425447961,0.220932,67098.0,67092.0,0.19144128]
[1721425448163,0.001,67095.0,67092.0,0.19144128]
[1721425448369,0.001,67095.0,67094.0,0.1485]
[1721425449093,0.002,67095.0,67094.0,0.1485]
[1721425449498,0.001,67095.0,67094.0,0.1485]
[1721425449899,0.135132,67098.0,67094.0,0.1485]
[1721425450127,0.0589855,67097.0,67094.0,0.1485]
[1721425450285,0.0589855,67097.0,67081.0,0.4753]
[1721425450286,0.0818,67095.0,67084.0,0.1421]
[1721425450515,0.001,67095.0,67085.0,0.1]
[1721425450926,0.134141,67094.0,67088.0,0.134151]
[1721425451524,0.001,67097.0,67093.0,0.134141]
[1721425451729,0.05903979,67096.0,67093.0,0.134141]
[1721425451970,0.001,67095.0,67093.0,0.134141]
[1721425452563,0.001,67094.0,67093.0,0.134141]
[1721425453313,0.001,67094.0,67093.0,0.139141]
[1721425454309,0.13413,67099.0,67093.0,0.134141]
[1721425454525,0.19342542,67098.0,67093.0,0.134141]
[1721425454732,0.001,67094.0,67093.0,0.134141]
[1721425455182,0.134132,67098.0,67093.0,0.134141]
[1721425455561,0.001,67094.0,67093.0,0.134141]
[1721425455767,0.002,67094.0,67093.0,0.139141]
[1721425456954,0.001,67094.0,67093.0,0.139141]
[1721425460014,0.002,67094.0,67093.0,0.139141]
[1721425464246,0.06137124,67094.0,67093.0,0.139141]
[1721425465334,0.002,67094.0,67093.0,0.139141]
[1721425465787,0.06179303,67094.0,67093.0,0.139141]
[1721425465988,0.002,67094.0,67093.0,0.139141]
[1721425466373,0.06265772,67094.0,67093.0,0.139141]
[1721425468665,0.06264069,67094.0,67093.0,0.139141]
[1721425469217,0.06264176,67094.0,67093.0,0.139141]
[1721425470000,0.002,67094.0,67093.0,0.139141]
[1721425470804,0.06258681,67094.0,67093.0,0.139141]
[1721425472566,0.06258681,67094.0,67093.0,0.675709]
[1721425472567,0.06275141,67094.0,67093.0,0.675709]
[1721425472702,0.06275141,67094.0,67093.0,0.407425]
[1721425472908,0.002,67094.0,67093.0,0.407425]
[1721425477837,0.002,67094.0,67093.0,0.53919235]
[1721425478585,0.002,67094.0,67093.0,0.407425]
[1721425483042,0.00161133,67094.0,67093.0,0.407425]
[1721425489762,0.14371133,67094.0,67093.0,0.407425]
[1721425490585,0.06701133,67094.0,67093.0,0.407425]
[1721425491089,0.00161133,67094.0,67093.0,0.407425]
[1721425491298,1.08269133,67094.0,67093.0,0.005]